[Event "Titled Tuesday Blitz February 14 Early 2023"]
[White "Colijn, Stefan"]
[Black "Balabayeva, Xeniya"]
[WhiteFideId "1016199"]
[BlackFideId "13719688"]
[WhiteElo "2293"]
[BlackElo "2191"]
[Result "1-0"]
[Round "10"]
[TimeControl "180+2"]
[Date "2023.02.14"]
[WhiteClock "0:00:46"]
[BlackClock "0:01:03"]

1. d4 {[%clk 0:03:00]}  d6 {[%clk 0:02:59]} 2. Nc3 {[%clk 0:03:00]}  d5 {[%clk 0:02:55]} 3. Bf4 {[%clk 0:02:57]}  c6 {[%clk 0:02:54]} 4. e3 {[%clk 0:02:58]}  Qb6 {[%clk 0:02:48]} 5. a3 {[%clk 0:02:57]}  Nf6 {[%clk 0:02:45]} 6. Bd3 {[%clk 0:02:55]}  g6 {[%clk 0:02:43]} 7. Nf3 {[%clk 0:02:54]}  Bg7 {[%clk 0:02:43]} 8. O-O {[%clk 0:02:53]}  h6 {[%clk 0:02:42]} 9. Ne5 {[%clk 0:02:51]}  Nbd7 {[%clk 0:02:40]} 10. b4 {[%clk 0:02:44]}  Nxe5 {[%clk 0:02:34]} 11. Bxe5 {[%clk 0:02:45]}  O-O {[%clk 0:02:32]} 12. Ne2 {[%clk 0:02:32]}  Ne8 {[%clk 0:02:23]} 13. Bxg7 {[%clk 0:02:29]}  Nxg7 {[%clk 0:02:21]} 14. c4 {[%clk 0:02:30]}  dxc4 {[%clk 0:02:20]} 15. Bxc4 {[%clk 0:02:29]}  Bf5 {[%clk 0:02:17]} 16. Qb3 {[%clk 0:02:20]}  Rad8 {[%clk 0:02:14]} 17. Ng3 {[%clk 0:02:13]}  Be6 {[%clk 0:02:12]} 18. Rfd1 {[%clk 0:02:06]}  Bxc4 {[%clk 0:02:10]} 19. Qxc4 {[%clk 0:02:07]}  Ne6 {[%clk 0:02:09]} 20. Ne4 {[%clk 0:02:06]}  Kg7 {[%clk 0:02:03]} 21. a4 {[%clk 0:01:58]}  Nc7 {[%clk 0:01:57]} 22. Rdb1 {[%clk 0:01:26]}  Rd5 {[%clk 0:01:42]} 23. Nc5 {[%clk 0:01:22]}  Rfd8 {[%clk 0:01:36]} 24. a5 {[%clk 0:01:02]}  Qb5 {[%clk 0:01:31]} 25. Qxb5 {[%clk 0:01:03]}  Nxb5 {[%clk 0:01:30]} 26. Nxb7 {[%clk 0:01:03]}  e5 {[%clk 0:01:29]} 27. dxe5 {[%clk 0:00:58]}  Nc3 {[%clk 0:01:26]} 28. Re1 {[%clk 0:00:53]}  Rxe5 {[%clk 0:01:23]} 29. Rac1 {[%clk 0:00:51]}  Nd5 {[%clk 0:01:03]} 30. Nxd8 {[%clk 0:00:46]} 1-0


[Site "https://www.chess.com"]

[Event "Titled Tuesday Blitz February 14 Early 2023"]
[White "Goncalves, Davi Sulzbacher"]
[Black "Tinmaz, Kerem"]
[WhiteFideId "2154510"]
[BlackFideId "44559151"]
[WhiteElo "2282"]
[BlackElo "2177"]
[Result "1-0"]
[Round "10"]
[TimeControl "180+2"]
[Date "2023.02.14"]
[WhiteClock "0:00:07"]
[BlackClock "0:00:03"]

1. Nf3 {[%clk 0:02:16]}  d5 {[%clk 0:02:59]} 2. g3 {[%clk 0:02:17]}  Nf6 {[%clk 0:02:58]} 3. Bg2 {[%clk 0:02:18]}  Bg4 {[%clk 0:02:59]} 4. d4 {[%clk 0:02:17]}  e6 {[%clk 0:02:58]} 5. Ne5 {[%clk 0:02:17]}  Bf5 {[%clk 0:02:57]} 6. c4 {[%clk 0:02:16]}  c6 {[%clk 0:02:56]} 7. Nc3 {[%clk 0:02:15]}  Nbd7 {[%clk 0:02:55]} 8. Nxd7 {[%clk 0:02:15]}  Qxd7 {[%clk 0:02:55]} 9. cxd5 {[%clk 0:02:14]}  exd5 {[%clk 0:02:54]} 10. Bg5 {[%clk 0:02:14]}  Be7 {[%clk 0:02:54]} 11. O-O {[%clk 0:02:14]}  O-O {[%clk 0:02:54]} 12. Qd2 {[%clk 0:02:08]}  h6 {[%clk 0:02:53]} 13. Bf4 {[%clk 0:01:58]}  Rfe8 {[%clk 0:02:50]} 14. Rac1 {[%clk 0:01:57]}  Bd6 {[%clk 0:02:42]} 15. Bxd6 {[%clk 0:01:47]}  Qxd6 {[%clk 0:02:43]} 16. e3 {[%clk 0:01:47]}  Qe6 {[%clk 0:02:25]} 17. a3 {[%clk 0:01:46]}  Bh3 {[%clk 0:02:21]} 18. b4 {[%clk 0:01:45]}  a6 {[%clk 0:02:19]} 19. Qc2 {[%clk 0:01:40]}  h5 {[%clk 0:02:10]} 20. Ne2 {[%clk 0:01:39]}  g5 {[%clk 0:01:56]} 21. Nc3 {[%clk 0:01:16]}  h4 {[%clk 0:01:51]} 22. Qe2 {[%clk 0:01:11]}  Kg7 {[%clk 0:01:44]} 23. Qf3 {[%clk 0:01:09]}  Rh8 {[%clk 0:01:36]} 24. Bxh3 {[%clk 0:01:01]}  Qxh3 {[%clk 0:01:37]} 25. Qg2 {[%clk 0:00:59]}  Qg4 {[%clk 0:00:53]} 26. h3 {[%clk 0:00:52]}  Qe6 {[%clk 0:00:48]} 27. g4 {[%clk 0:00:52]}  Rae8 {[%clk 0:00:27]} 28. Rce1 {[%clk 0:00:45]}  Ne4 {[%clk 0:00:27]} 29. Nxe4 {[%clk 0:00:42]}  Qxe4 {[%clk 0:00:28]} 30. Qxe4 {[%clk 0:00:31]}  Rxe4 {[%clk 0:00:29]} 31. Rc1 {[%clk 0:00:29]}  f5 {[%clk 0:00:26]} 32. gxf5 {[%clk 0:00:28]}  Kf6 {[%clk 0:00:26]} 33. Rc3 {[%clk 0:00:26]}  Kxf5 {[%clk 0:00:20]} 34. f3 {[%clk 0:00:26]}  Re6 {[%clk 0:00:20]} 35. e4+ {[%clk 0:00:18]}  dxe4 {[%clk 0:00:11]} 36. fxe4+ {[%clk 0:00:18]}  Kxe4 {[%clk 0:00:12]} 37. Rc5 {[%clk 0:00:15]}  Rg6 {[%clk 0:00:03]} 38. Kf2 {[%clk 0:00:08]}  Kxd4 {[%clk 0:00:03]} 39. Rd1+ {[%clk 0:00:07]}  Ke4 {[%clk 0:00:03]} 40. Re1+ {[%clk 0:00:07]}  Kf4 {[%clk 0:00:04]} 41. Rec1 {[%clk 0:00:07]}  Rd8 {[%clk 0:00:03]} 42. R1c4+ {[%clk 0:00:07]} 1-0


[Site "https://www.chess.com"]

[Event "Titled Tuesday Blitz February 14 Early 2023"]
[White "Smith, Garrett L"]
[Black "Fernandez Garcia, Gumersindo"]
[WhiteFideId "2024829"]
[BlackFideId "24516740"]
[WhiteElo "2047"]
[BlackElo "2160"]
[Result "0-1"]
[Round "10"]
[TimeControl "180+2"]
[Date "2023.02.14"]
[WhiteClock "0:00:11"]
[BlackClock "0:00:44"]

1. e4 {[%clk 0:03:00]}  c5 {[%clk 0:02:59]} 2. a3 {[%clk 0:03:00]}  Nc6 {[%clk 0:03:00]} 3. b4 {[%clk 0:03:00]}  cxb4 {[%clk 0:02:58]} 4. axb4 {[%clk 0:03:01]}  e5 {[%clk 0:02:53]} 5. b5 {[%clk 0:02:59]}  Nce7 {[%clk 0:02:53]} 6. Bb2 {[%clk 0:02:57]}  d6 {[%clk 0:02:53]} 7. Nf3 {[%clk 0:02:56]}  Ng6 {[%clk 0:02:54]} 8. Nc3 {[%clk 0:02:52]}  Nf6 {[%clk 0:02:54]} 9. g3 {[%clk 0:02:43]}  Be7 {[%clk 0:02:54]} 10. Bg2 {[%clk 0:02:41]}  O-O {[%clk 0:02:54]} 11. O-O {[%clk 0:02:40]}  h6 {[%clk 0:02:54]} 12. d4 {[%clk 0:02:37]}  Be6 {[%clk 0:02:51]} 13. Ra4 {[%clk 0:02:34]}  Qb6 {[%clk 0:02:49]} 14. h4 {[%clk 0:02:17]}  Rfd8 {[%clk 0:02:41]} 15. Qd3 {[%clk 0:02:13]}  Rac8 {[%clk 0:02:39]} 16. Rfa1 {[%clk 0:02:08]}  exd4 {[%clk 0:02:36]} 17. Qxd4 {[%clk 0:01:48]}  Ne5 {[%clk 0:02:15]} 18. Nd5 {[%clk 0:01:26]}  Bxd5 {[%clk 0:02:08]} 19. exd5 {[%clk 0:01:26]}  Nxf3+ {[%clk 0:02:08]} 20. Bxf3 {[%clk 0:01:26]}  Rxc2 {[%clk 0:02:05]} 21. Rxa7 {[%clk 0:01:20]}  Qxb5 {[%clk 0:01:59]} 22. Bc3 {[%clk 0:01:15]}  Rc8 {[%clk 0:01:56]} 23. R1a3 {[%clk 0:01:14]}  Bf8 {[%clk 0:01:45]} 24. g4 {[%clk 0:01:07]}  Qb1+ {[%clk 0:01:43]} 25. Kg2 {[%clk 0:01:04]}  Qc1 {[%clk 0:01:39]} 26. Ra1 {[%clk 0:00:53]}  Rxf2+ {[%clk 0:01:07]} 27. Kxf2 {[%clk 0:00:51]}  Qxc3 {[%clk 0:01:04]} 28. Qxc3 {[%clk 0:00:50]}  Rxc3 {[%clk 0:01:05]} 29. Ra8 {[%clk 0:00:46]}  Rc2+ {[%clk 0:00:56]} 30. Kg3 {[%clk 0:00:45]}  Rc3 {[%clk 0:00:56]} 31. Kf2 {[%clk 0:00:39]}  g5 {[%clk 0:00:54]} 32. hxg5 {[%clk 0:00:38]}  hxg5 {[%clk 0:00:55]} 33. Rb8 {[%clk 0:00:36]}  Rc7 {[%clk 0:00:55]} 34. Raa8 {[%clk 0:00:35]}  Nd7 {[%clk 0:00:55]} 35. Rd8 {[%clk 0:00:35]}  Kg7 {[%clk 0:00:55]} 36. Be4 {[%clk 0:00:33]}  Be7 {[%clk 0:00:55]} 37. Rh8 {[%clk 0:00:27]}  Kf6 {[%clk 0:00:54]} 38. Ra3 {[%clk 0:00:23]}  Ke5 {[%clk 0:00:52]} 39. Re3 {[%clk 0:00:19]}  Bf6 {[%clk 0:00:50]} 40. Ra8 {[%clk 0:00:16]}  Kd4 {[%clk 0:00:45]} 41. Ra4+ {[%clk 0:00:14]}  Rc4 {[%clk 0:00:46]} 42. Rxc4+ {[%clk 0:00:13]}  Kxc4 {[%clk 0:00:47]} 43. Bf3 {[%clk 0:00:12]}  Ne5 {[%clk 0:00:47]} 44. Re1 {[%clk 0:00:11]}  Nd3+ {[%clk 0:00:44]} 0-1


[Site "https://www.chess.com"]

[Event "Titled Tuesday Blitz February 14 Early 2023"]
[White "Zacurdajev, Dmitry"]
[Black "Nugumanov, Bakhtiyar"]
[WhiteFideId "4196309"]
[BlackFideId "13701797"]
[WhiteElo "2273"]
[BlackElo "2316"]
[Result "1-0"]
[Round "10"]
[TimeControl "180+2"]
[Date "2023.02.14"]
[WhiteClock "0:00:51"]
[BlackClock "0:00:02"]

1. d4 {[%clk 0:03:00]}  d6 {[%clk 0:02:59]} 2. c4 {[%clk 0:03:00]}  e5 {[%clk 0:02:59]} 3. d5 {[%clk 0:02:59]}  f5 {[%clk 0:02:53]} 4. Nc3 {[%clk 0:02:59]}  Nf6 {[%clk 0:02:53]} 5. g3 {[%clk 0:03:00]}  e4 {[%clk 0:02:44]} 6. Bg2 {[%clk 0:02:55]}  Be7 {[%clk 0:02:35]} 7. Nh3 {[%clk 0:02:56]}  O-O {[%clk 0:02:35]} 8. Nf4 {[%clk 0:02:52]}  c6 {[%clk 0:02:34]} 9. Be3 {[%clk 0:02:45]}  cxd5 {[%clk 0:02:34]} 10. Nfxd5 {[%clk 0:02:30]}  Nc6 {[%clk 0:02:29]} 11. O-O {[%clk 0:02:27]}  Ne5 {[%clk 0:02:24]} 12. b3 {[%clk 0:02:22]}  Be6 {[%clk 0:02:21]} 13. Bf4 {[%clk 0:02:14]}  Nfd7 {[%clk 0:02:11]} 14. Qd2 {[%clk 0:02:04]}  Bxd5 {[%clk 0:00:40]} 15. Qxd5+ {[%clk 0:01:53]}  Kh8 {[%clk 0:00:40]} 16. Qxb7 {[%clk 0:01:54]}  Ng6 {[%clk 0:00:38]} 17. Be3 {[%clk 0:01:41]}  Bf6 {[%clk 0:00:37]} 18. Rac1 {[%clk 0:01:39]}  Nc5 {[%clk 0:00:34]} 19. Bxc5 {[%clk 0:01:34]}  dxc5 {[%clk 0:00:34]} 20. Rfd1 {[%clk 0:01:34]}  Qa5 {[%clk 0:00:29]} 21. Nd5 {[%clk 0:01:29]}  Rab8 {[%clk 0:00:15]} 22. Qd7 {[%clk 0:01:27]}  Qxa2 {[%clk 0:00:09]} 23. Nxf6 {[%clk 0:01:25]}  Rxf6 {[%clk 0:00:10]} 24. Qc7 {[%clk 0:01:25]}  Rff8 {[%clk 0:00:10]} 25. Qxc5 {[%clk 0:01:25]}  Qxb3 {[%clk 0:00:08]} 26. h4 {[%clk 0:01:20]}  Qb6 {[%clk 0:00:03]} 27. Qa3 {[%clk 0:01:15]}  Ne5 {[%clk 0:00:02]} 28. c5 {[%clk 0:01:13]}  Qc6 {[%clk 0:00:02]} 29. Qxa7 {[%clk 0:01:11]}  Rb7 {[%clk 0:00:01]} 30. Qa1 {[%clk 0:01:04]}  Nf7 {[%clk 0:00:01]} 31. Qd4 {[%clk 0:00:58]}  h6 {[%clk 0:00:02]} 32. Qd5 {[%clk 0:00:57]}  Rc8 {[%clk 0:00:02]} 33. Bh3 {[%clk 0:00:55]}  Qxd5 {[%clk 0:00:02]} 34. Rxd5 {[%clk 0:00:56]}  g6 {[%clk 0:00:02]} 35. c6 {[%clk 0:00:54]}  Rbc7 {[%clk 0:00:03]} 36. Rdc5 {[%clk 0:00:54]}  Ne5 {[%clk 0:00:02]} 37. Rxe5 {[%clk 0:00:52]}  Rxc6 {[%clk 0:00:02]} 38. Rxc6 {[%clk 0:00:53]}  Rxc6 {[%clk 0:00:03]} 39. h5 {[%clk 0:00:52]}  Kg7 {[%clk 0:00:02]} 40. hxg6 {[%clk 0:00:51]}  Kxg6 {[%clk 0:00:02]} 41. Bxf5+ {[%clk 0:00:51]} 1-0


[Site "https://www.chess.com"]

[Event "Titled Tuesday Blitz February 14 Early 2023"]
[White "Kanyamarala, Trisha"]
[Black "Barrera Rincones, Josmar Joel"]
[WhiteFideId "45004722"]
[BlackFideId "3975487"]
[WhiteElo "2278"]
[BlackElo "1399"]
[Result "1-0"]
[Round "10"]
[TimeControl "180+2"]
[Date "2023.02.14"]
[WhiteClock "0:00:12"]
[BlackClock "0:00:06"]

1. d4 {[%clk 0:02:59]}  Nf6 {[%clk 0:02:59]} 2. c4 {[%clk 0:02:54]}  g6 {[%clk 0:02:58]} 3. Nc3 {[%clk 0:02:54]}  Bg7 {[%clk 0:02:58]} 4. e4 {[%clk 0:02:54]}  d6 {[%clk 0:02:57]} 5. Nf3 {[%clk 0:02:54]}  O-O {[%clk 0:02:57]} 6. Be2 {[%clk 0:02:54]}  c6 {[%clk 0:02:50]} 7. O-O {[%clk 0:02:45]}  a6 {[%clk 0:02:47]} 8. Qc2 {[%clk 0:02:39]}  b5 {[%clk 0:02:43]} 9. Bg5 {[%clk 0:02:38]}  Nbd7 {[%clk 0:02:33]} 10. e5 {[%clk 0:02:36]}  Ne8 {[%clk 0:02:30]} 11. exd6 {[%clk 0:02:36]}  Nxd6 {[%clk 0:02:28]} 12. c5 {[%clk 0:02:34]}  Nf5 {[%clk 0:02:22]} 13. Rad1 {[%clk 0:02:31]}  h6 {[%clk 0:01:50]} 14. Bf4 {[%clk 0:02:24]}  Nf6 {[%clk 0:01:49]} 15. Ne5 {[%clk 0:02:16]}  Nxd4 {[%clk 0:01:30]} 16. Nxc6 {[%clk 0:02:08]}  Nxc2 {[%clk 0:01:29]} 17. Nxd8 {[%clk 0:02:08]}  Bf5 {[%clk 0:01:17]} 18. Nc6 {[%clk 0:02:06]}  Rfe8 {[%clk 0:01:14]} 19. Bf3 {[%clk 0:02:04]}  Rac8 {[%clk 0:01:12]} 20. Rd2 {[%clk 0:01:43]}  g5 {[%clk 0:01:08]} 21. Bg3 {[%clk 0:01:10]}  g4 {[%clk 0:01:06]} 22. Bd1 {[%clk 0:01:09]}  Rxc6 {[%clk 0:01:01]} 23. Bxc2 {[%clk 0:01:09]}  Bxc2 {[%clk 0:01:02]} 24. Rxc2 {[%clk 0:01:10]}  Rxc5 {[%clk 0:01:03]} 25. Re2 {[%clk 0:01:05]}  e6 {[%clk 0:00:58]} 26. Rd1 {[%clk 0:01:00]}  Rec8 {[%clk 0:00:51]} 27. Bd6 {[%clk 0:00:50]}  R5c6 {[%clk 0:00:50]} 28. Bb4 {[%clk 0:00:50]}  h5 {[%clk 0:00:48]} 29. h3 {[%clk 0:00:49]}  gxh3 {[%clk 0:00:48]} 30. gxh3 {[%clk 0:00:49]}  Rc4 {[%clk 0:00:47]} 31. a3 {[%clk 0:00:48]}  R4c6 {[%clk 0:00:42]} 32. Kh2 {[%clk 0:00:45]}  Bh6 {[%clk 0:00:42]} 33. Rg1+ {[%clk 0:00:43]}  Kh7 {[%clk 0:00:41]} 34. Be7 {[%clk 0:00:30]}  Bf4+ {[%clk 0:00:39]} 35. Kh1 {[%clk 0:00:31]}  Nd7 {[%clk 0:00:22]} 36. Re4 {[%clk 0:00:26]}  e5 {[%clk 0:00:22]} 37. Nd5 {[%clk 0:00:17]}  Bh6 {[%clk 0:00:21]} 38. Rh4 {[%clk 0:00:16]}  Nb6 {[%clk 0:00:12]} 39. Nf6+ {[%clk 0:00:16]}  Rxf6 {[%clk 0:00:11]} 40. Bxf6 {[%clk 0:00:15]}  Nd5 {[%clk 0:00:12]} 41. Bxe5 {[%clk 0:00:14]}  Re8 {[%clk 0:00:10]} 42. Rxh5 {[%clk 0:00:14]}  f6 {[%clk 0:00:09]} 43. Bd4 {[%clk 0:00:14]}  Nf4 {[%clk 0:00:09]} 44. Rh4 {[%clk 0:00:14]}  Ne2 {[%clk 0:00:06]} 45. Re1 {[%clk 0:00:12]}  Kg6 {[%clk 0:00:03]} 46. Rg4+ {[%clk 0:00:12]}  Bg5 {[%clk 0:00:03]} 47. Rgg1 {[%clk 0:00:11]}  Nxd4 {[%clk 0:00:04]} 48. Rxe8 {[%clk 0:00:11]}  Nf3 {[%clk 0:00:04]} 49. Rg8+ {[%clk 0:00:11]}  Kf5 {[%clk 0:00:04]} 50. R8xg5+ {[%clk 0:00:11]}  fxg5 {[%clk 0:00:05]} 51. Rg4 {[%clk 0:00:11]}  Ne5 {[%clk 0:00:04]} 52. Rb4 {[%clk 0:00:11]}  Nc4 {[%clk 0:00:04]} 53. Rb3 {[%clk 0:00:11]}  Na5 {[%clk 0:00:04]} 54. Rc3 {[%clk 0:00:11]}  Nc4 {[%clk 0:00:03]} 55. Kg2 {[%clk 0:00:11]}  Ke4 {[%clk 0:00:03]} 56. Rg3 {[%clk 0:00:11]}  Kf5 {[%clk 0:00:02]} 57. Rb3 {[%clk 0:00:10]}  Na5 {[%clk 0:00:01]} 58. Rb4 {[%clk 0:00:11]}  Nc4 {[%clk 0:00:02]} 59. a4 {[%clk 0:00:11]}  a5 {[%clk 0:00:02]} 60. Rxb5+ {[%clk 0:00:11]}  Kf4 {[%clk 0:00:01]} 61. b4 {[%clk 0:00:11]}  Nd2 {[%clk 0:00:02]} 62. bxa5 {[%clk 0:00:10]}  Ne4 {[%clk 0:00:02]} 63. Rb4 {[%clk 0:00:11]}  Ke5 {[%clk 0:00:02]} 64. Rxe4+ {[%clk 0:00:11]}  Kxe4 {[%clk 0:00:03]} 65. a6 {[%clk 0:00:11]}  Kd4 {[%clk 0:00:04]} 66. a7 {[%clk 0:00:12]}  Kc4 {[%clk 0:00:05]} 67. a8=Q {[%clk 0:00:12]}  Kb4 {[%clk 0:00:05]} 68. Qg8 {[%clk 0:00:12]}  Kc3 {[%clk 0:00:06]} 69. Qxg5 {[%clk 0:00:12]} 1-0


[Site "https://www.chess.com"]

[Event "Titled Tuesday Blitz February 14 Early 2023"]
[White "Loskutova, Viktoriya"]
[Black "Orzech, Dominik"]
[WhiteFideId "34166278"]
[BlackFideId "1115065"]
[WhiteElo "2153"]
[BlackElo "2308"]
[Result "0-1"]
[Round "10"]
[TimeControl "180+2"]
[Date "2023.02.14"]
[WhiteClock "0:00:14"]
[BlackClock "0:01:08"]

1. e4 {[%clk 0:03:00]}  c6 {[%clk 0:02:48]} 2. d4 {[%clk 0:03:00]}  d5 {[%clk 0:02:47]} 3. exd5 {[%clk 0:02:57]}  cxd5 {[%clk 0:02:45]} 4. Bd3 {[%clk 0:02:58]}  Nc6 {[%clk 0:02:44]} 5. c3 {[%clk 0:02:59]}  Qc7 {[%clk 0:02:44]} 6. h3 {[%clk 0:02:58]}  Nf6 {[%clk 0:02:43]} 7. Na3 {[%clk 0:02:54]}  e5 {[%clk 0:02:40]} 8. dxe5 {[%clk 0:02:47]}  Qxe5+ {[%clk 0:02:36]} 9. Ne2 {[%clk 0:02:40]}  Bxa3 {[%clk 0:02:36]} 10. bxa3 {[%clk 0:02:40]}  O-O {[%clk 0:02:36]} 11. O-O {[%clk 0:02:40]}  Bf5 {[%clk 0:02:36]} 12. Bf4 {[%clk 0:02:25]}  Qe6 {[%clk 0:02:36]} 13. Re1 {[%clk 0:02:19]}  Bxd3 {[%clk 0:02:34]} 14. Qxd3 {[%clk 0:02:18]}  Qe4 {[%clk 0:02:33]} 15. Rad1 {[%clk 0:02:09]}  Qxd3 {[%clk 0:02:32]} 16. Rxd3 {[%clk 0:02:09]}  h6 {[%clk 0:02:29]} 17. Rb1 {[%clk 0:01:54]}  b6 {[%clk 0:02:27]} 18. a4 {[%clk 0:01:53]}  Rac8 {[%clk 0:02:26]} 19. Nd4 {[%clk 0:01:49]}  Nxd4 {[%clk 0:02:21]} 20. cxd4 {[%clk 0:01:48]}  Rc2 {[%clk 0:02:19]} 21. a3 {[%clk 0:01:48]}  Rfc8 {[%clk 0:02:18]} 22. Rb5 {[%clk 0:01:35]}  Ne4 {[%clk 0:02:10]} 23. Be3 {[%clk 0:01:27]}  Nc3 {[%clk 0:02:03]} 24. Rb4 {[%clk 0:01:21]}  Rc4 {[%clk 0:02:00]} 25. Rd2 {[%clk 0:00:59]}  Rxd2 {[%clk 0:01:57]} 26. Bxd2 {[%clk 0:00:59]}  Ne2+ {[%clk 0:01:56]} 27. Kf1 {[%clk 0:00:55]}  Nxd4 {[%clk 0:01:57]} 28. Rxc4 {[%clk 0:00:54]}  dxc4 {[%clk 0:01:57]} 29. Bc3 {[%clk 0:00:44]}  Nb3 {[%clk 0:01:47]} 30. Ke2 {[%clk 0:00:37]}  g6 {[%clk 0:01:45]} 31. Kd1 {[%clk 0:00:31]}  Kf8 {[%clk 0:01:44]} 32. Kc2 {[%clk 0:00:28]}  Ke7 {[%clk 0:01:44]} 33. Bg7 {[%clk 0:00:27]}  h5 {[%clk 0:01:41]} 34. Kc3 {[%clk 0:00:24]}  Na5 {[%clk 0:01:38]} 35. Be5 {[%clk 0:00:20]}  Ke6 {[%clk 0:01:38]} 36. Bb8 {[%clk 0:00:20]}  Nc6 {[%clk 0:01:38]} 37. Bc7 {[%clk 0:00:19]}  Kd5 {[%clk 0:01:38]} 38. Bf4 {[%clk 0:00:18]}  Nd4 {[%clk 0:01:37]} 39. Be3 {[%clk 0:00:18]}  Nf5 {[%clk 0:01:36]} 40. Bf4 {[%clk 0:00:18]}  Nh4 {[%clk 0:01:36]} 41. g3 {[%clk 0:00:17]}  Nf3 {[%clk 0:01:31]} 42. Bb8 {[%clk 0:00:17]}  a6 {[%clk 0:01:30]} 43. Ba7 {[%clk 0:00:17]}  b5 {[%clk 0:01:29]} 44. axb5 {[%clk 0:00:17]}  axb5 {[%clk 0:01:30]} 45. Be3 {[%clk 0:00:16]}  Ne5 {[%clk 0:01:30]} 46. h4 {[%clk 0:00:17]}  Nd3 {[%clk 0:01:29]} 47. Ba7 {[%clk 0:00:16]}  Ke4 {[%clk 0:01:25]} 48. a4 {[%clk 0:00:14]}  bxa4 {[%clk 0:01:24]} 49. Kxc4 {[%clk 0:00:15]}  a3 {[%clk 0:01:09]} 50. Kb3 {[%clk 0:00:14]}  Kf3 {[%clk 0:01:08]} 51. Kxa3 {[%clk 0:00:14]}  Nxf2 {[%clk 0:01:08]} 52. Bb8 {[%clk 0:00:13]}  Ne4 {[%clk 0:01:07]} 53. Kb3 {[%clk 0:00:14]}  Nxg3 {[%clk 0:01:07]} 54. Kc3 {[%clk 0:00:14]}  Nf5 {[%clk 0:01:08]} 0-1


[Site "https://www.chess.com"]

[Event "Titled Tuesday Blitz February 14 Early 2023"]
[White "Kalajzic, Ivan"]
[Black "Sai Han Thiha"]
[WhiteFideId "14506378"]
[BlackFideId "13012290"]
[WhiteElo "2062"]
[BlackElo "2070"]
[Result "0-1"]
[Round "10"]
[TimeControl "180+2"]
[Date "2023.02.14"]
[WhiteClock "0:00:03"]
[BlackClock "0:01:18"]

1. c4 {[%clk 0:03:00]}  Nf6 {[%clk 0:03:00]} 2. Nc3 {[%clk 0:03:01]}  g6 {[%clk 0:03:00]} 3. e4 {[%clk 0:03:00]}  Bg7 {[%clk 0:03:00]} 4. e5 {[%clk 0:02:58]}  Ng8 {[%clk 0:02:45]} 5. h4 {[%clk 0:02:58]}  d6 {[%clk 0:02:43]} 6. exd6 {[%clk 0:02:55]}  Qxd6 {[%clk 0:02:41]} 7. h5 {[%clk 0:02:55]}  Nc6 {[%clk 0:02:40]} 8. hxg6 {[%clk 0:02:41]}  hxg6 {[%clk 0:02:40]} 9. Rxh8 {[%clk 0:02:41]}  Bxh8 {[%clk 0:02:41]} 10. d3 {[%clk 0:02:20]}  Bf5 {[%clk 0:02:33]} 11. Nd5 {[%clk 0:02:07]}  e6 {[%clk 0:02:19]} 12. Bf4 {[%clk 0:02:05]}  Ne5 {[%clk 0:02:19]} 13. Qa4+ {[%clk 0:01:33]}  c6 {[%clk 0:02:10]} 14. d4 {[%clk 0:00:54]}  exd5 {[%clk 0:02:04]} 15. dxe5 {[%clk 0:00:51]}  Bxe5 {[%clk 0:02:05]} 16. Bxe5 {[%clk 0:00:38]}  Qxe5+ {[%clk 0:02:06]} 17. Be2 {[%clk 0:00:36]}  Qxb2 {[%clk 0:02:04]} 18. Rd1 {[%clk 0:00:30]}  Bc2 {[%clk 0:02:02]} 19. Qa5 {[%clk 0:00:18]}  Bxd1 {[%clk 0:01:58]} 20. Bxd1 {[%clk 0:00:19]}  b6 {[%clk 0:01:50]} 21. Qa6 {[%clk 0:00:17]}  Qc3+ {[%clk 0:01:45]} 22. Kf1 {[%clk 0:00:17]}  Qxc4+ {[%clk 0:01:45]} 23. Qxc4 {[%clk 0:00:16]}  dxc4 {[%clk 0:01:46]} 24. Bf3 {[%clk 0:00:16]}  Kd7 {[%clk 0:01:45]} 25. Ne2 {[%clk 0:00:16]}  Rc8 {[%clk 0:01:39]} 26. Nd4 {[%clk 0:00:14]}  a6 {[%clk 0:01:38]} 27. Ke2 {[%clk 0:00:10]}  c5 {[%clk 0:01:38]} 28. Nc2 {[%clk 0:00:08]}  f5 {[%clk 0:01:37]} 29. Ne3 {[%clk 0:00:08]}  b5 {[%clk 0:01:37]} 30. g4 {[%clk 0:00:07]}  f4 {[%clk 0:01:36]} 31. Nd5 {[%clk 0:00:07]}  g5 {[%clk 0:01:37]} 32. Nb6+ {[%clk 0:00:07]}  Kc7 {[%clk 0:01:37]} 33. Nxc8 {[%clk 0:00:08]}  Kxc8 {[%clk 0:01:38]} 34. Kd2 {[%clk 0:00:08]}  Nf6 {[%clk 0:01:38]} 35. Bd1 {[%clk 0:00:07]}  Kc7 {[%clk 0:01:36]} 36. f3 {[%clk 0:00:07]}  Nd5 {[%clk 0:01:36]} 37. Bc2 {[%clk 0:00:06]}  Kd6 {[%clk 0:01:36]} 38. Be4 {[%clk 0:00:07]}  Ke5 {[%clk 0:01:36]} 39. Kc1 {[%clk 0:00:06]}  Kd4 {[%clk 0:01:35]} 40. Kb2 {[%clk 0:00:07]}  b4 {[%clk 0:01:33]} 41. a3 {[%clk 0:00:07]}  c3+ {[%clk 0:01:29]} 42. Kb3 {[%clk 0:00:07]}  c4+ {[%clk 0:01:29]} 43. Ka4 {[%clk 0:00:07]}  b3 {[%clk 0:01:29]} 44. Ka5 {[%clk 0:00:06]}  c2 {[%clk 0:01:29]} 45. a4 {[%clk 0:00:06]}  c1=Q {[%clk 0:01:28]} 46. Kxa6 {[%clk 0:00:05]}  Nc3 {[%clk 0:01:25]} 47. Bc6 {[%clk 0:00:04]}  b2 {[%clk 0:01:24]} 48. a5 {[%clk 0:00:04]}  b1=Q {[%clk 0:01:24]} 49. Bb7 {[%clk 0:00:04]}  Qb5+ {[%clk 0:01:19]} 50. Ka7 {[%clk 0:00:03]}  Qxa5+ {[%clk 0:01:19]} 51. Ba6 {[%clk 0:00:03]}  Qc7+ {[%clk 0:01:18]} 52. Bb7 {[%clk 0:00:03]}  Qa3# {[%clk 0:01:18]} 0-1


[Site "https://www.chess.com"]